Workbook

Sheet 2019
A1: Franchise | B1: 2019 Rankings | C1: 2018 Rankings | D1: Change in Rankings
A2: McDonald's | B2: 1 | C2: =VLOOKUP(A2,'2018'!A:B,2,FALSE) -> 1 | D2: 0
A3: Dunkin' | B3: 2 | C3: =VLOOKUP(A3,'2018'!A:B,2,FALSE) -> 3 | D3: 1
A4: Sonic Drive-In | B4: 3 | C4: =VLOOKUP(A4,'2018'!A:B,2,FALSE) -> 6 | D4: 3
A5: Taco Bell | B5: 4 | C5: =VLOOKUP(A5,'2018'!A:B,2,FALSE) -> 8 | D5: 4
A6: The UPS Store | B6: 5 | C6: =VLOOKUP(A6,'2018'!A:B,2,FALSE) -> 4 | D6: -1
A7: Culver's | B7: 6 | C7: =VLOOKUP(A7,'2018'!A:B,2,FALSE) -> 13 | D7: 7
A8: Planet Fitness | B8: 7 | C8: =VLOOKUP(A8,'2018'!A:B,2,FALSE) -> 21 | D8: 14
A9: Great Clips | B9: 8 | C9: =VLOOKUP(A9,'2018'!A:B,2,FALSE) -> 7 | D9: -1
A10: Jersey Mike's Subs | B10: 9 | C10: =VLOOKUP(A10,'2018'!A:B,2,FALSE) -> 24 | D10: 15
A11: 7-Eleven Inc. | B11: 10 | C11: =VLOOKUP(A11,'2018'!A:B,2,FALSE) -> 2 | D11: -8
A12: Jimmy John's Gourmet Sandwiches | B12: 11 | C12: =VLOOKUP(A12,'2018'!A:B,2,FALSE) -> 11 | D12: 0
A13: Baskin-Robbins | B13: 12 | C13: =VLOOKUP(A13,'2018'!A:B,2,FALSE) -> 41 | D13: 29
A14: Ace Hardware Corp. | B14: 13 | C14: =VLOOKUP(A14,'2018'!A:B,2,FALSE) -> 19 | D14: 6
A15: Kumon Math & Reading Centers | B15: 14 | C15: =VLOOKUP(A15,'2018'!A:B,2,FALSE) -> 20 | D15: 6
A16: RE/MAX LLC | B16: 15 | C16: =VLOOKUP(A16,'2018'!A:B,2,FALSE) -> 5 | D16: -10
A17: Pizza Hut LLC | B17: 16 | C17: =VLOOKUP(A17,'2018'!A:B,2,FALSE) -> 47 | D17: 31
A18: Sport Clips | B18: 17 | C18: =VLOOKUP(A18,'2018'!A:B,2,FALSE) -> 10 | D18: -7
A19: Snap-on Tools | B19: 18 | C19: =VLOOKUP(A19,'2018'!A:B,2,FALSE) -> 30 | D19: 12
A20: Jack in the Box | B20: 19 | C20: =VLOOKUP(A20,'2018'!A:B,2,FALSE) -> 43 | D20: 24
A21: Anytime Fitness | B21: 20 | C21: =VLOOKUP(A21,'2018'!A:B,2,FALSE) -> 17 | D21: -3
A22: Dairy Queen | B22: 21 | C22: =VLOOKUP(A22,'2018'!A:B,2,FALSE) -> 67 | D22: 46
A23: Smoothie King | B23: 22 | C23: =VLOOKUP(A23,'2018'!A:B,2,FALSE) -> 35 | D23: 13
A24: KFC US LLC | B24: 23 | C24: =VLOOKUP(A24,'2018'!A:B,2,FALSE) -> 233 | D24: 210
A25: CPR-Cell Phone Repair | B25: 24 | C25: =VLOOKUP(A25,'2018'!A:B,2,FALSE) -> 26 | D25: 2
A26: Orangetheory Fitness | B26: 25 | C26: =VLOOKUP(A26,'2018'!A:B,2,FALSE) -> 48 | D26: 23
A27: Bojangles' Famous Chicken 'n Biscuits | B27: 26 | C27: =VLOOKUP(A27,'2018'!A:B,2,FALSE) -> 57 | D27: 31
A28: Hampton by Hilton | B28: 27 | C28: =VLOOKUP(A28,'2018'!A:B,2,FALSE) -> 29 | D28: 2
A29: Servpro | B29: 28 | C29: =VLOOKUP(A29,'2018'!A:B,2,FALSE) -> 12 | D29: -16
A30: uBreakiFix | B30: 29 | C30: =VLOOKUP(A30,'2018'!A:B,2,FALSE) -> 18 | D30: -11
A31: HomeVestors of America Inc. | B31: 30 | C31: =VLOOKUP(A31,'2018'!A:B,2,FALSE) -> 37 | D31: 7
A32: Supercuts | B32: 31 | C32: =VLOOKUP(A32,'2018'!A:B,2,FALSE) -> 14 | D32: -17
A33: Keller Williams | B33: 32 | C33: =VLOOKUP(A33,'2018'!A:B,2,FALSE) -> 22 | D33: -10
A34: Carl's Jr. Restaurants LLC | B34: 33 | C34: =VLOOKUP(A34,'2018'!A:B,2,FALSE) -> 15 | D34: -18
A35: Golden Corral Restaurants | B35: 34 | C35: =VLOOKUP(A35,'2018'!A:B,2,FALSE) -> 54 | D35: 20
A36: Budget Blinds LLC | B36: 35 | C36: =VLOOKUP(A36,'2018'!A:B,2,FALSE) -> 23 | D36: -12
A37: Holiday Inn and Holiday Inn Express | B37: 36 | C37: =VLOOKUP(A37,'2018'!A:B,2,FALSE) -> 62 | D37: 26
A38: Matco Tools | B38: 37 | C38: =VLOOKUP(A38,'2018'!A:B,2,FALSE) -> 36 | D38: -1
A39: Merry Maids | B39: 38 | C39: =VLOOKUP(A39,'2018'!A:B,2,FALSE) -> 38 | D39: 0
A40: Jan-Pro Franchising Int'l. Inc. | B40: 39 | C40: =VLOOKUP(A40,'2018'!A:B,2,FALSE) -> 51 | D40: 12
A41: Mathnasium Learning Centers | B41: 40 | C41: =VLOOKUP(A41,'2018'!A:B,2,FALSE) -> 28 | D41: -12
A42: McAlister's Deli | B42: 41 | C42: =VLOOKUP(A42,'2018'!A:B,2,FALSE) -> 114 | D42: 73
A43: Stratus Building Solutions | B43: 42 | C43: =VLOOKUP(A43,'2018'!A:B,2,FALSE) -> 103 | D43: 61
A44: Arby's | B44: 43 | C44: =VLOOKUP(A44,'2018'!A:B,2,FALSE) -> 112 | D44: 69
A45: Papa John's Int'l. Inc. | B45: 44 | C45: =VLOOKUP(A45,'2018'!A:B,2,FALSE) -> 16 | D45: -28
A46: Hardee's Restaurants LLC | B46: 45 | C46: =VLOOKUP(A46,'2018'!A:B,2,FALSE) -> 9 | D46: -36
A47: Pet Supplies Plus | B47: 46 | C47: =VLOOKUP(A47,'2018'!A:B,2,FALSE) -> 32 | D47: -14
A48: Mosquito Joe | B48: 47 | C48: =VLOOKUP(A48,'2018'!A:B,2,FALSE) -> 42 | D48: -5
A49: Huntington Learning Centers | B49: 48 | C49: =VLOOKUP(A49,'2018'!A:B,2,FALSE) -> 154 | D49: 106
A50: Firehouse Subs | B50: 49 | C50: =VLOOKUP(A50,'2018'!A:B,2,FALSE) -> 39 | D50: -10
A51: Goldfish Swim School Franchising LLC | B51: 50 | C51: =VLOOKUP(A51,'2018'!A:B,2,FALSE) -> 55 | D51: 5
A52: Freddy's Frozen Custard & Steakburgers | B52: 51 | C52: =VLOOKUP(A52,'2018'!A:B,2,FALSE) -> 44 | D52: -7
A53: Anago Cleaning Systems | B53: 52 | C53: =VLOOKUP(A53,'2018'!A:B,2,FALSE) -> 68 | D53: 16
A54: Doubletree by Hilton | B54: 53 | C54: =VLOOKUP(A54,'2018'!A:B,2,FALSE) -> 144 | D54: 91
A55: Mac Tools | B55: 54 | C55: =VLOOKUP(A55,'2018'!A:B,2,FALSE) -> 40 | D55: -14
A56: Primrose School Franchising Co. | B56: 55 | C56: =VLOOKUP(A56,'2018'!A:B,2,FALSE) -> 27 | D56: -28
A57: Hilton Hotels and Resorts | B57: 56 | C57: =VLOOKUP(A57,'2018'!A:B,2,FALSE) -> 33 | D57: -23
A58: 911 Restoration | B58: 57 | C58: =VLOOKUP(A58,'2018'!A:B,2,FALSE) -> 162 | D58: 105
A59: Lawn Doctor | B59: 58 | C59: =VLOOKUP(A59,'2018'!A:B,2,FALSE) -> 91 | D59: 33
A60: Weed Man | B60: 59 | C60: =VLOOKUP(A60,'2018'!A:B,2,FALSE) -> 59 | D60: 0
A61: Cruise Planners | B61: 60 | C61: =VLOOKUP(A61,'2018'!A:B,2,FALSE) -> 60 | D61: 0
A62: Blaze Fast-Fire'd Pizza | B62: 61 | C62: =VLOOKUP(A62,'2018'!A:B,2,FALSE) -> 95 | D62: 34
A63: Red Roof Inn | B63: 62 | C63: =VLOOKUP(A63,'2018'!A:B,2,FALSE) -> 92 | D63: 30
A64: Miracle-Ear Inc. | B64: 63 | C64: NEW
A65: Fyzical Therapy & Balance Centers | B65: 64 | C65: =VLOOKUP(A65,'2018'!A:B,2,FALSE) -> 117 | D65: 53
A66: Tropical Smoothie Cafe | B66: 65 | C66: =VLOOKUP(A66,'2018'!A:B,2,FALSE) -> 71 | D66: 6
A67: Express Employment Professionals | B67: 66 | C67: =VLOOKUP(A67,'2018'!A:B,2,FALSE) -> 69 | D67: 3
A68: Kona Ice | B68: 67 | C68: =VLOOKUP(A68,'2018'!A:B,2,FALSE) -> 83 | D68: 16
A69: Kilwins Chocolates Franchise Inc. | B69: 68 | C69: =VLOOKUP(A69,'2018'!A:B,2,FALSE) -> 94 | D69: 26
A70: The Maids | B70: 69 | C70: =VLOOKUP(A70,'2018'!A:B,2,FALSE) -> 46 | D70: -23
A71: Homewood Suites by Hilton | B71: 70 | C71: =VLOOKUP(A71,'2018'!A:B,2,FALSE) -> 66 | D71: -4
A72: Potbelly Sandwich Shop | B72: 71 | C72: =VLOOKUP(A72,'2018'!A:B,2,FALSE) -> 269 | D72: 198
A73: Chem-Dry Carpet & Upholstery Cleaning | B73: 72 | C73: =VLOOKUP(A73,'2018'!A:B,2,FALSE) -> 137 | D73: 65
A74: Motel 6 | B74: 73 | C74: =VLOOKUP(A74,'2018'!A:B,2,FALSE) -> 116 | D74: 43
A75: Cinnabon | B75: 74 | C75: =VLOOKUP(A75,'2018'!A:B,2,FALSE) -> 98 | D75: 24
A76: Pearle Vision | B76: 75 | C76: =VLOOKUP(A76,'2018'!A:B,2,FALSE) -> 72 | D76: -3
A77: Vanguard Cleaning Systems | B77: 76 | C77: =VLOOKUP(A77,'2018'!A:B,2,FALSE) -> 84 | D77: 8
A78: Fuzzy's Taco Shop | B78: 77 | C78: =VLOOKUP(A78,'2018'!A:B,2,FALSE) -> 123 | D78: 46
A79: Hilton Garden Inn | B79: 78 | C79: =VLOOKUP(A79,'2018'!A:B,2,FALSE) -> 100 | D79: 22
A80: Auntie Anne's Hand-Rolled Soft Pretzels | B80: 79 | C80: =VLOOKUP(A80,'2018'!A:B,2,FALSE) -> 124 | D80: 45
A81: Ben & Jerry's | B81: 80 | C81: =VLOOKUP(A81,'2018'!A:B,2,FALSE) -> 261 | D81: 181
A82: Cornwell Quality Tools | B82: 81 | C82: =VLOOKUP(A82,'2018'!A:B,2,FALSE) -> 145 | D82: 64
A83: Goddard Systems Inc. | B83: 82 | C83: =VLOOKUP(A83,'2018'!A:B,2,FALSE) -> 77 | D83: -5
A84: Marco's Pizza | B84: 83 | C84: =VLOOKUP(A84,'2018'!A:B,2,FALSE) -> 25 | D84: -58
A85: The Learning Experience Academy of Early Education | B85: 84 | C85: =VLOOKUP(A85,'2018'!A:B,2,FALSE) -> 79 | D85: -5
A86: SafeSplash/SwimLabs/Swimtastic | B86: 85 | C86: =VLOOKUP(A86,'2018'!A:B,2,FALSE) -> 325 | D86: 240
A87: Palm Beach Tan | B87: 86 | C87: =VLOOKUP(A87,'2018'!A:B,2,FALSE) -> 52 | D87: -34
A88: British Swim School USA | B88: 87 | C88: =VLOOKUP(A88,'2018'!A:B,2,FALSE) -> 121 | D88: 34
A89: Checkers Drive-In Restaurants Inc. | B89: 88 | C89: =VLOOKUP(A89,'2018'!A:B,2,FALSE) -> 140 | D89: 52
A90: Home2 Suites by Hilton | B90: 89 | C90: NEW
A91: Jiffy Lube Int'l. Inc. | B91: 90 | C91: =VLOOKUP(A91,'2018'!A:B,2,FALSE) -> 181 | D91: 91
A92: CMIT Solutions Inc. | B92: 91 | C92: =VLOOKUP(A92,'2018'!A:B,2,FALSE) -> 186 | D92: 95
A93: Embassy Suites by Hilton | B93: 92 | C93: =VLOOKUP(A93,'2018'!A:B,2,FALSE) -> 61 | D93: -31
A94: Rooter-Man | B94: 93 | C94: =VLOOKUP(A94,'2018'!A:B,2,FALSE) -> 107 | D94: 14
A95: Jazzercise Inc. | B95: 94 | C95: =VLOOKUP(A95,'2018'!A:B,2,FALSE) -> 63 | D95: -31
A96: FastSigns Int'l. Inc. | B96: 95 | C96: =VLOOKUP(A96,'2018'!A:B,2,FALSE) -> 70 | D96: -25
A97: Carstar Franchise Systems Inc. | B97: 96 | C97: =VLOOKUP(A97,'2018'!A:B,2,FALSE) -> 255 | D97: 159
A98: Urban Air Adventure Park | B98: 97 | C98: NEW
A99: Pillar To Post Home Inspectors | B99: 98 | C99: =VLOOKUP(A99,'2018'!A:B,2,FALSE) -> 64 | D99: -34
A100: Express Oil Change & Tire Engineers | B100: 99 | C100: =VLOOKUP(A100,'2018'!A:B,2,FALSE) -> 120 | D100: 21
A101: Spring-Green Lawn Care | B101: 100 | C101: =VLOOKUP(A101,'2018'!A:B,2,FALSE) -> 169 | D101: 69
A102: Dream Vacations | B102: 101 | C102: =VLOOKUP(A102,'2018'!A:B,2,FALSE) -> 138 | D102: 37
A103: Charleys Philly Steaks | B103: 102 | C103: =VLOOKUP(A103,'2018'!A:B,2,FALSE) -> 160 | D103: 58
A104: Weichert Real Estate Affiliates Inc. | B104: 103 | C104: =VLOOKUP(A104,'2018'!A:B,2,FALSE) -> 139 | D104: 36
A105: Fleet Feet | B105: 104 | C105: =VLOOKUP(A105,'2018'!A:B,2,FALSE) -> 90 | D105: -14
A106: Taco John's Int'l. Inc. | B106: 105 | C106: NEW
A107: Valvoline Instant Oil Change | B107: 106 | C107: =VLOOKUP(A107,'2018'!A:B,2,FALSE) -> 34 | D107: -72
A108: American Family Care | B108: 107 | C108: =VLOOKUP(A108,'2018'!A:B,2,FALSE) -> 115 | D108: 8
A109: Edible Arrangements | B109: 108 | C109: =VLOOKUP(A109,'2018'!A:B,2,FALSE) -> 53 | D109: -55
A110: The Joint Corp. | B110: 109 | C110: =VLOOKUP(A110,'2018'!A:B,2,FALSE) -> 109 | D110: 0
A111: Chester's | B111: 110 | C111: =VLOOKUP(A111,'2018'!A:B,2,FALSE) -> 153 | D111: 43
A112: Kiddie Academy | B112: 111 | C112: =VLOOKUP(A112,'2018'!A:B,2,FALSE) -> 73 | D112: -38
A113: 9Round | B113: 112 | C113: =VLOOKUP(A113,'2018'!A:B,2,FALSE) -> 197 | D113: 85
A114: One Hour Heating & Air Conditioning | B114: 113 | C114: =VLOOKUP(A114,'2018'!A:B,2,FALSE) -> 104 | D114: -9
A115: Batteries Plus Bulbs | B115: 114 | C115: =VLOOKUP(A115,'2018'!A:B,2,FALSE) -> 118 | D115: 4
A116: Pirtek | B116: 115 | C116: =VLOOKUP(A116,'2018'!A:B,2,FALSE) -> 78 | D116: -37
A117: Buffalo Wild Wings | B117: 116 | C117: NEW
A118: HoneyBaked Ham | B118: 117 | C118: =VLOOKUP(A118,'2018'!A:B,2,FALSE) -> 130 | D118: 13
A119: The Little Gym Int'l. | B119: 118 | C119: =VLOOKUP(A119,'2018'!A:B,2,FALSE) -> 189 | D119: 71
A120: Drybar | B120: 119 | C120: NEW
A121: Novus Glass | B121: 120 | C121: =VLOOKUP(A121,'2018'!A:B,2,FALSE) -> 455 | D121: 335
A122: MaidPro | B122: 121 | C122: =VLOOKUP(A122,'2018'!A:B,2,FALSE) -> 80 | D122: -41
A123: Fit Body Boot Camp | B123: 122 | C123: =VLOOKUP(A123,'2018'!A:B,2,FALSE) -> 350 | D123: 228
A124: Minuteman Press Int'l. Inc. | B124: 123 | C124: =VLOOKUP(A124,'2018'!A:B,2,FALSE) -> 141 | D124: 18
A125: AlphaGraphics | B125: 124 | C125: =VLOOKUP(A125,'2018'!A:B,2,FALSE) -> 142 | D125: 18
A126: Subway | B126: 125 | C126: =VLOOKUP(A126,'2018'!A:B,2,FALSE) -> 105 | D126: -20
A127: Wienerschnitzel | B127: 126 | C127: =VLOOKUP(A127,'2018'!A:B,2,FALSE) -> 166 | D127: 40
A128: Brightway Insurance | B128: 127 | C128: =VLOOKUP(A128,'2018'!A:B,2,FALSE) -> 199 | D128: 72
A129: Bach to Rock | B129: 128 | C129: =VLOOKUP(A129,'2018'!A:B,2,FALSE) -> 227 | D129: 99
A130: Once Upon A Child | B130: 129 | C130: =VLOOKUP(A130,'2018'!A:B,2,FALSE) -> 58 | D130: -71
A131: Labor Finders | B131: 130 | C131: =VLOOKUP(A131,'2018'!A:B,2,FALSE) -> 129 | D131: -1
A132: Hungry Howie's Pizza & Subs | B132: 131 | C132: =VLOOKUP(A132,'2018'!A:B,2,FALSE) -> 214 | D132: 83
A133: Wild Birds Unlimited | B133: 132 | C133: =VLOOKUP(A133,'2018'!A:B,2,FALSE) -> 218 | D133: 86
A134: Hand and Stone Massage and Facial Spa | B134: 133 | C134: =VLOOKUP(A134,'2018'!A:B,2,FALSE) -> 96 | D134: -37
A135: Club Pilates Franchise | B135: 134 | C135: =VLOOKUP(A135,'2018'!A:B,2,FALSE) -> 237 | D135: 103
A136: Rosati's Pizza | B136: 135 | C136: =VLOOKUP(A136,'2018'!A:B,2,FALSE) -> 239 | D136: 104
A137: Realty One Group | B137: 136 | C137: =VLOOKUP(A137,'2018'!A:B,2,FALSE) -> 230 | D137: 94
A138: Jet's Pizza | B138: 137 | C138: =VLOOKUP(A138,'2018'!A:B,2,FALSE) -> 127 | D138: -10
A139: College Nannies, Sitters and Tutors | B139: 138 | C139: =VLOOKUP(A139,'2018'!A:B,2,FALSE) -> 56 | D139: -82
A140: Captain D's LLC | B140: 139 | C140: =VLOOKUP(A140,'2018'!A:B,2,FALSE) -> 372 | D140: 233
A141: Baymont by Wyndham | B141: 140 | C141: =VLOOKUP(A141,'2018'!A:B,2,FALSE) -> 299 | D141: 159
A142: Beef Jerky Outlet Franchise Inc. | B142: 141 | C142: =VLOOKUP(A142,'2018'!A:B,2,FALSE) -> 99 | D142: -42
A143: GNC Franchising | B143: 142 | C143: =VLOOKUP(A143,'2018'!A:B,2,FALSE) -> 85 | D143: -57
A144: College Hunks Hauling Junk & Moving | B144: 143 | C144: =VLOOKUP(A144,'2018'!A:B,2,FALSE) -> 260 | D144: 117
A145: Interim HealthCare | B145: 144 | C145: =VLOOKUP(A145,'2018'!A:B,2,FALSE) -> 102 | D145: -42
A146: Aqua-Tots Swim Schools | B146: 145 | C146: NEW
A147: Which Wich Superior Sandwiches | B147: 146 | C147: =VLOOKUP(A147,'2018'!A:B,2,FALSE) -> 204 | D147: 58
A148: Cookie Cutters Haircuts for Kids | B148: 147 | C148: =VLOOKUP(A148,'2018'!A:B,2,FALSE) -> 444 | D148: 297
A149: Crunch Franchise | B149: 148 | C149: =VLOOKUP(A149,'2018'!A:B,2,FALSE) -> 216 | D149: 68
A150: Moe's Southwest Grill | B150: 149 | C150: =VLOOKUP(A150,'2018'!A:B,2,FALSE) -> 219 | D150: 70
A151: Penn Station East Coast Subs | B151: 150 | C151: =VLOOKUP(A151,'2018'!A:B,2,FALSE) -> 177 | D151: 27
A152: Spherion Staffing | B152: 151 | C152: =VLOOKUP(A152,'2018'!A:B,2,FALSE) -> 203 | D152: 52
A153: Circle K | B153: 152 | C153: =VLOOKUP(A153,'2018'!A:B,2,FALSE) -> 208 | D153: 56
A154: Drama Kids Int'l. | B154: 153 | C154: =VLOOKUP(A154,'2018'!A:B,2,FALSE) -> 192 | D154: 39
A155: Mountain Mike's Pizza | B155: 154 | C155: NEW
A156: Patrice & Associates | B156: 155 | C156: =VLOOKUP(A156,'2018'!A:B,2,FALSE) -> 119 | D156: -36
A157: PrideStaff | B157: 156 | C157: =VLOOKUP(A157,'2018'!A:B,2,FALSE) -> 113 | D157: -43
A158: Kids 'R' Kids Learning Academies | B158: 157 | C158: NEW
A159: My Gym Children's Fitness Center | B159: 158 | C159: =VLOOKUP(A159,'2018'!A:B,2,FALSE) -> 182 | D159: 24
A160: Donatos | B160: 159 | C160: =VLOOKUP(A160,'2018'!A:B,2,FALSE) -> 195 | D160: 36
A161: Office Evolution | B161: 160 | C161: =VLOOKUP(A161,'2018'!A:B,2,FALSE) -> 198 | D161: 38
A162: YESCO Sign & Lighting Service | B162: 161 | C162: =VLOOKUP(A162,'2018'!A:B,2,FALSE) -> 143 | D162: -18
A163: Golden Chick | B163: 162 | C163: =VLOOKUP(A163,'2018'!A:B,2,FALSE) -> 378 | D163: 216
A164: Painting with a Twist | B164: 163 | C164: =VLOOKUP(A164,'2018'!A:B,2,FALSE) -> 168 | D164: 5
A165: Profile by Sanford | B165: 164 | C165: NEW
A166: Restoration 1 | B166: 165 | C166: =VLOOKUP(A166,'2018'!A:B,2,FALSE) -> 132 | D166: -33
A167: Dale Carnegie Training | B167: 166 | C167: =VLOOKUP(A167,'2018'!A:B,2,FALSE) -> 171 | D167: 5
A168: Tide Dry Cleaners | B168: 167 | C168: =VLOOKUP(A168,'2018'!A:B,2,FALSE) -> 251 | D168: 84
A169: Petland | B169: 168 | C169: =VLOOKUP(A169,'2018'!A:B,2,FALSE) -> 209 | D169: 41
A170: Visiting Angels | B170: 169 | C170: =VLOOKUP(A170,'2018'!A:B,2,FALSE) -> 74 | D170: -95
A171: Experimac | B171: 170 | C171: =VLOOKUP(A171,'2018'!A:B,2,FALSE) -> 223 | D171: 53
A172: Leadership Management Inc. | B172: 171 | C172: =VLOOKUP(A172,'2018'!A:B,2,FALSE) -> 314 | D172: 143
A173: Big O Tires LLC | B173: 172 | C173: =VLOOKUP(A173,'2018'!A:B,2,FALSE) -> 250 | D173: 78
A174: Miracle Method Surface Refinishing | B174: 173 | C174: =VLOOKUP(A174,'2018'!A:B,2,FALSE) -> 173 | D174: 0
A175: Grease Monkey Franchising LLC | B175: 174 | C175: =VLOOKUP(A175,'2018'!A:B,2,FALSE) -> 278 | D175: 104
A176: City Wide Franchise | B176: 175 | C176: =VLOOKUP(A176,'2018'!A:B,2,FALSE) -> 150 | D176: -25
A177: TeamLogic IT | B177: 176 | C177: =VLOOKUP(A177,'2018'!A:B,2,FALSE) -> 242 | D177: 66
A178: Skyhawks Sports & Supertots Sports Academy | B178: 177 | C178: =VLOOKUP(A178,'2018'!A:B,2,FALSE) -> 284 | D178: 107
A179: NaturaLawn of America Inc. | B179: 178 | C179: =VLOOKUP(A179,'2018'!A:B,2,FALSE) -> 172 | D179: -6
A180: PuroClean | B180: 179 | C180: =VLOOKUP(A180,'2018'!A:B,2,FALSE) -> 258 | D180: 79
A181: Maaco Franchising Inc. | B181: 180 | C181: =VLOOKUP(A181,'2018'!A:B,2,FALSE) -> 228 | D181: 48
A182: Postal Annex+ | B182: 181 | C182: =VLOOKUP(A182,'2018'!A:B,2,FALSE) -> 176 | D182: -5
A183: Lightbridge Academy | B183: 182 | C183: NEW
A184: BirthdayPak | B184: 183 | C184: NEW
A185: BrightStar Care | B185: 184 | C185: =VLOOKUP(A185,'2018'!A:B,2,FALSE) -> 75 | D185: -109
A186: Molly Maid | B186: 185 | C186: =VLOOKUP(A186,'2018'!A:B,2,FALSE) -> 174 | D186: -11
A187: Great American Cookies | B187: 186 | C187: =VLOOKUP(A187,'2018'!A:B,2,FALSE) -> 222 | D187: 36
A188: Plato's Closet | B188: 187 | C188: =VLOOKUP(A188,'2018'!A:B,2,FALSE) -> 97 | D188: -90
A189: Salons by JC | B189: 188 | C189: =VLOOKUP(A189,'2018'!A:B,2,FALSE) -> 108 | D189: -80
A190: Ziebart | B190: 189 | C190: =VLOOKUP(A190,'2018'!A:B,2,FALSE) -> 151 | D190: -38
A191: Nurse Next Door Home Care Services | B191: 190 | C191: =VLOOKUP(A191,'2018'!A:B,2,FALSE) -> 50 | D191: -140
A192: Schlotzsky's | B192: 191 | C192: =VLOOKUP(A192,'2018'!A:B,2,FALSE) -> 231 | D192: 40
A193: Senior Helpers | B193: 192 | C193: =VLOOKUP(A193,'2018'!A:B,2,FALSE) -> 157 | D193: -35
A194: Camp Bow Wow | B194: 193 | C194: =VLOOKUP(A194,'2018'!A:B,2,FALSE) -> 146 | D194: -47
A195: Floor Coverings International | B195: 194 | C195: =VLOOKUP(A195,'2018'!A:B,2,FALSE) -> 156 | D195: -38
A196: Sky Zone | B196: 195 | C196: =VLOOKUP(A196,'2018'!A:B,2,FALSE) -> 81 | D196: -114
A197: Gyu-Kaku Japanese BBQ Restaurant | B197: 196 | C197: =VLOOKUP(A197,'2018'!A:B,2,FALSE) -> 246 | D197: 50
A198: Phenix Salon Suites Franchising LLC | B198: 197 | C198: =VLOOKUP(A198,'2018'!A:B,2,FALSE) -> 122 | D198: -75
A199: Kid to Kid | B199: 198 | C199: =VLOOKUP(A199,'2018'!A:B,2,FALSE) -> 207 | D199: 9
A200: Buildingstars Int'l. Inc. | B200: 199 | C200: =VLOOKUP(A200,'2018'!A:B,2,FALSE) -> 224 | D200: 25
... 301 more rows

Sheet 2018
A1: Franchise | B1: 2018 Rankings | C1: 2019 Rankings
A2: Wingstop Restaurants Inc. | B2: 31 | C2: =VLOOKUP(A2,'2019'!A:A,1,FALSE) -> 
A3: Denny's Inc. | B3: 76 | C3: =VLOOKUP(A3,'2019'!A:A,1,FALSE) -> 
A4: Ikor Int'l. LLC | B4: 86 | C4: =VLOOKUP(A4,'2019'!A:A,1,FALSE) -> 
A5: Valpak Direct Marketing Systems Inc. | B5: 128 | C5: =VLOOKUP(A5,'2019'!A:A,1,FALSE) -> 
A6: AdvantaClean | B6: 148 | C6: =VLOOKUP(A6,'2019'!A:A,1,FALSE) -> 
A7: 1-800 Water Damage | B7: 161 | C7: =VLOOKUP(A7,'2019'!A:A,1,FALSE) -> 
A8: Rockin' Jump | B8: 165 | C8: =VLOOKUP(A8,'2019'!A:A,1,FALSE) -> 
A9: la Madeleine French Bakery & Cafe | B9: 167 | C9: =VLOOKUP(A9,'2019'!A:A,1,FALSE) -> 
A10: Dickey's Barbecue Pit | B10: 170 | C10: =VLOOKUP(A10,'2019'!A:A,1,FALSE) -> 
A11: Jantize America | B11: 184 | C11: =VLOOKUP(A11,'2019'!A:A,1,FALSE) -> 
A12: Buddy's Home Furnishings | B12: 190 | C12: =VLOOKUP(A12,'2019'!A:A,1,FALSE) -> 
A13: Slumberland Franchising Inc. | B13: 200 | C13: =VLOOKUP(A13,'2019'!A:A,1,FALSE) -> 
A14: Farmer Boys Restaurants | B14: 206 | C14: =VLOOKUP(A14,'2019'!A:A,1,FALSE) -> 
A15: milliCare | B15: 215 | C15: =VLOOKUP(A15,'2019'!A:A,1,FALSE) -> 
A16: Bahama Buck's | B16: 232 | C16: =VLOOKUP(A16,'2019'!A:A,1,FALSE) -> 
A17: Best in Class Education Center | B17: 248 | C17: =VLOOKUP(A17,'2019'!A:A,1,FALSE) -> 
A18: Handyman Connection | B18: 253 | C18: =VLOOKUP(A18,'2019'!A:A,1,FALSE) -> 
A19: Seva Beauty | B19: 262 | C19: =VLOOKUP(A19,'2019'!A:A,1,FALSE) -> 
A20: ARCpoint Labs | B20: 272 | C20: =VLOOKUP(A20,'2019'!A:A,1,FALSE) -> 
A21: Boulder Designs | B21: 296 | C21: =VLOOKUP(A21,'2019'!A:A,1,FALSE) -> 
A22: SwimLabs Swim School | B22: 301 | C22: =VLOOKUP(A22,'2019'!A:A,1,FALSE) -> 
A23: Window Genie | B23: 302 | C23: =VLOOKUP(A23,'2019'!A:A,1,FALSE) -> 
A24: Villa Italian Kitchen | B24: 316 | C24: =VLOOKUP(A24,'2019'!A:A,1,FALSE) -> 
A25: Honest-1 Auto Care LLC | B25: 319 | C25: =VLOOKUP(A25,'2019'!A:A,1,FALSE) -> 
A26: Eggs Up Grill | B26: 321 | C26: =VLOOKUP(A26,'2019'!A:A,1,FALSE) -> 
A27: The Entrepreneur's Source | B27: 333 | C27: =VLOOKUP(A27,'2019'!A:A,1,FALSE) -> 
A28: Sit Means Sit Dog Training | B28: 340 | C28: =VLOOKUP(A28,'2019'!A:A,1,FALSE) -> 
A29: Digital Doc | B29: 343 | C29: =VLOOKUP(A29,'2019'!A:A,1,FALSE) -> 
A30: ComForCare Home Care | B30: 346 | C30: =VLOOKUP(A30,'2019'!A:A,1,FALSE) -> 
A31: Nutty Scientists | B31: 353 | C31: =VLOOKUP(A31,'2019'!A:A,1,FALSE) -> 
A32: Storm Guard Roofing & Construction | B32: 356 | C32: =VLOOKUP(A32,'2019'!A:A,1,FALSE) -> 
A33: Paul Davis Emergency Services | B33: 362 | C33: =VLOOKUP(A33,'2019'!A:A,1,FALSE) -> 
A34: Money Mailer Franchise Corp. | B34: 364 | C34: =VLOOKUP(A34,'2019'!A:A,1,FALSE) -> 
A35: HappyFeet Legends Int'l. | B35: 368 | C35: =VLOOKUP(A35,'2019'!A:A,1,FALSE) -> 
A36: Juice It Up! | B36: 373 | C36: =VLOOKUP(A36,'2019'!A:A,1,FALSE) -> 
A37: The Cleaning Authority | B37: 374 | C37: =VLOOKUP(A37,'2019'!A:A,1,FALSE) -> 
A38: Red Lion Hotels | B38: 375 | C38: =VLOOKUP(A38,'2019'!A:A,1,FALSE) -> 
A39: Relocation Strategies | B39: 381 | C39: =VLOOKUP(A39,'2019'!A:A,1,FALSE) -> 
A40: Lapels | B40: 382 | C40: =VLOOKUP(A40,'2019'!A:A,1,FALSE) -> 
A41: Fox's Pizza Den | B41: 387 | C41: =VLOOKUP(A41,'2019'!A:A,1,FALSE) -> 
A42: Handyman Matters Franchise Inc. | B42: 393 | C42: =VLOOKUP(A42,'2019'!A:A,1,FALSE) -> 
A43: WIN Home Inspection | B43: 395 | C43: =VLOOKUP(A43,'2019'!A:A,1,FALSE) -> 
A44: UFC Gym | B44: 397 | C44: =VLOOKUP(A44,'2019'!A:A,1,FALSE) -> 
A45: Marble Slab Creamery | B45: 401 | C45: =VLOOKUP(A45,'2019'!A:A,1,FALSE) -> 
A46: Biggby Coffee | B46: 406 | C46: =VLOOKUP(A46,'2019'!A:A,1,FALSE) -> 
A47: The Flame Broiler Inc. | B47: 407 | C47: =VLOOKUP(A47,'2019'!A:A,1,FALSE) -> 
A48: Zippy Shell Moving and Storage | B48: 422 | C48: =VLOOKUP(A48,'2019'!A:A,1,FALSE) -> 
A49: Realty Executives Intl. Svcs. LLC | B49: 424 | C49: =VLOOKUP(A49,'2019'!A:A,1,FALSE) -> 
A50: AIM Mail Centers | B50: 426 | C50: =VLOOKUP(A50,'2019'!A:A,1,FALSE) -> 
A51: Parcel Plus | B51: 427 | C51: =VLOOKUP(A51,'2019'!A:A,1,FALSE) -> 
A52: Complete Weddings + Events | B52: 429 | C52: =VLOOKUP(A52,'2019'!A:A,1,FALSE) -> 
A53: Snip-Its | B53: 430 | C53: =VLOOKUP(A53,'2019'!A:A,1,FALSE) -> 
A54: Christmas Decor | B54: 433 | C54: =VLOOKUP(A54,'2019'!A:A,1,FALSE) -> 
A55: Colors On Parade | B55: 434 | C55: =VLOOKUP(A55,'2019'!A:A,1,FALSE) -> 
A56: Outdoor Lighting Perspectives | B56: 439 | C56: =VLOOKUP(A56,'2019'!A:A,1,FALSE) -> 
A57: Preferred Care at Home | B57: 441 | C57: =VLOOKUP(A57,'2019'!A:A,1,FALSE) -> 
A58: Dunn Brothers Coffee | B58: 442 | C58: =VLOOKUP(A58,'2019'!A:A,1,FALSE) -> 
A59: The Glass Guru | B59: 445 | C59: =VLOOKUP(A59,'2019'!A:A,1,FALSE) -> 
A60: Papa Murphy's Take 'N' Bake Pizza | B60: 446 | C60: =VLOOKUP(A60,'2019'!A:A,1,FALSE) -> 
A61: Copper Penny | B61: 447 | C61: =VLOOKUP(A61,'2019'!A:A,1,FALSE) -> 
A62: Junk King | B62: 448 | C62: =VLOOKUP(A62,'2019'!A:A,1,FALSE) -> 
A63: Caring Transitions | B63: 449 | C63: =VLOOKUP(A63,'2019'!A:A,1,FALSE) -> 
A64: Sparkle Wash Int'l. | B64: 452 | C64: =VLOOKUP(A64,'2019'!A:A,1,FALSE) -> 
A65: U.S. Lawns | B65: 454 | C65: =VLOOKUP(A65,'2019'!A:A,1,FALSE) -> 
A66: Murphy Business & Financial Corp. LLC | B66: 458 | C66: =VLOOKUP(A66,'2019'!A:A,1,FALSE) -> 
A67: J.D. Byrider | B67: 461 | C67: =VLOOKUP(A67,'2019'!A:A,1,FALSE) -> 
A68: Happy Tax Franchising | B68: 462 | C68: =VLOOKUP(A68,'2019'!A:A,1,FALSE) -> 
A69: Supporting Strategies | B69: 466 | C69: =VLOOKUP(A69,'2019'!A:A,1,FALSE) -> 
A70: Sir Grout Franchising | B70: 467 | C70: =VLOOKUP(A70,'2019'!A:A,1,FALSE) -> 
A71: Cottage Inn Pizza | B71: 468 | C71: =VLOOKUP(A71,'2019'!A:A,1,FALSE) -> 
A72: Yogurtland Franchising Inc. | B72: 469 | C72: =VLOOKUP(A72,'2019'!A:A,1,FALSE) -> 
A73: United Real Estate | B73: 471 | C73: =VLOOKUP(A73,'2019'!A:A,1,FALSE) -> 
A74: Welcomemat Services | B74: 472 | C74: =VLOOKUP(A74,'2019'!A:A,1,FALSE) -> 
A75: Maid Right Franchising LLC | B75: 473 | C75: =VLOOKUP(A75,'2019'!A:A,1,FALSE) -> 
A76: Crowne Plaza Hotels & Resorts | B76: 476 | C76: =VLOOKUP(A76,'2019'!A:A,1,FALSE) -> 
A77: The Grounds Guys LLC | B77: 478 | C77: =VLOOKUP(A77,'2019'!A:A,1,FALSE) -> 
A78: Amramp | B78: 479 | C78: =VLOOKUP(A78,'2019'!A:A,1,FALSE) -> 
A79: LeafSpring Schools | B79: 480 | C79: =VLOOKUP(A79,'2019'!A:A,1,FALSE) -> 
A80: Parisi Speed School | B80: 481 | C80: =VLOOKUP(A80,'2019'!A:A,1,FALSE) -> 
A81: Massage Heights | B81: 483 | C81: =VLOOKUP(A81,'2019'!A:A,1,FALSE) -> 
A82: Archadeck Outdoor Living | B82: 484 | C82: =VLOOKUP(A82,'2019'!A:A,1,FALSE) -> 
A83: Fortune Personnel Consultants (FPC) | B83: 486 | C83: =VLOOKUP(A83,'2019'!A:A,1,FALSE) -> 
A84: Dental Fix RX LLC | B84: 487 | C84: =VLOOKUP(A84,'2019'!A:A,1,FALSE) -> 
A85: Young Rembrandts Franchise Inc. | B85: 489 | C85: =VLOOKUP(A85,'2019'!A:A,1,FALSE) -> 
A86: Clothes Mentor | B86: 491 | C86: =VLOOKUP(A86,'2019'!A:A,1,FALSE) -> 
A87: The Woodhouse Spas | B87: 492 | C87: =VLOOKUP(A87,'2019'!A:A,1,FALSE) -> 
A88: Medi-Weightloss Franchising USA LLC | B88: 494 | C88: =VLOOKUP(A88,'2019'!A:A,1,FALSE) -> 
A89: GarageExperts | B89: 495 | C89: =VLOOKUP(A89,'2019'!A:A,1,FALSE) -> 
A90: Engineering for Kids | B90: 496 | C90: =VLOOKUP(A90,'2019'!A:A,1,FALSE) -> 
A91: Mr. Sandless/Dr. DecknFence | B91: 499 | C91: =VLOOKUP(A91,'2019'!A:A,1,FALSE) -> 
A92: Aire Serv LLC | B92: 500 | C92: =VLOOKUP(A92,'2019'!A:A,1,FALSE) -> 
A93: Zoup! Systems LLC | B93: 327 | C93: =VLOOKUP(A93,'2019'!A:A,1,FALSE) -> Zoup! Systems LLC
A94: Zips Dry Cleaners | B94: 135 | C94: =VLOOKUP(A94,'2019'!A:A,1,FALSE) -> Zips Dry Cleaners
A95: Ziebart | B95: 151 | C95: =VLOOKUP(A95,'2019'!A:A,1,FALSE) -> Ziebart
A96: Zerorez Franchising Systems Inc. | B96: 349 | C96: =VLOOKUP(A96,'2019'!A:A,1,FALSE) -> Zerorez Franchising Systems Inc.
A97: Yogi Bear's Jellystone Park Camp-Resorts | B97: 265 | C97: =VLOOKUP(A97,'2019'!A:A,1,FALSE) -> Yogi Bear's Jellystone Park Camp-Resorts
A98: YESCO Sign & Lighting Service | B98: 143 | C98: =VLOOKUP(A98,'2019'!A:A,1,FALSE) -> YESCO Sign & Lighting Service
A99: Workout Anytime 24/7 | B99: 394 | C99: =VLOOKUP(A99,'2019'!A:A,1,FALSE) -> Workout Anytime 24/7
A100: Wireless Zone | B100: 388 | C100: =VLOOKUP(A100,'2019'!A:A,1,FALSE) -> Wireless Zone
A101: Window Gang | B101: 338 | C101: =VLOOKUP(A101,'2019'!A:A,1,FALSE) -> Window Gang
A102: Wild Birds Unlimited | B102: 218 | C102: =VLOOKUP(A102,'2019'!A:A,1,FALSE) -> Wild Birds Unlimited
A103: Wienerschnitzel | B103: 166 | C103: =VLOOKUP(A103,'2019'!A:A,1,FALSE) -> Wienerschnitzel
A104: Which Wich Superior Sandwiches | B104: 204 | C104: =VLOOKUP(A104,'2019'!A:A,1,FALSE) -> Which Wich Superior Sandwiches
A105: Wetzel's Pretzels | B105: 268 | C105: =VLOOKUP(A105,'2019'!A:A,1,FALSE) -> Wetzel's Pretzels
A106: Weichert Real Estate Affiliates Inc. | B106: 139 | C106: =VLOOKUP(A106,'2019'!A:A,1,FALSE) -> Weichert Real Estate Affiliates Inc.
A107: Weed Man | B107: 59 | C107: =VLOOKUP(A107,'2019'!A:A,1,FALSE) -> Weed Man
A108: Wayback Burgers | B108: 463 | C108: =VLOOKUP(A108,'2019'!A:A,1,FALSE) -> Wayback Burgers
A109: Waxing The City | B109: 111 | C109: =VLOOKUP(A109,'2019'!A:A,1,FALSE) -> Waxing The City
A110: Watermill Express Franchising | B110: 244 | C110: =VLOOKUP(A110,'2019'!A:A,1,FALSE) -> Watermill Express Franchising
A111: Wag N' Wash Natural Food & Bakery | B111: 465 | C111: =VLOOKUP(A111,'2019'!A:A,1,FALSE) -> Wag N' Wash Natural Food & Bakery
A112: Visiting Angels | B112: 74 | C112: =VLOOKUP(A112,'2019'!A:A,1,FALSE) -> Visiting Angels
A113: velofix Group of Companies | B113: 106 | C113: =VLOOKUP(A113,'2019'!A:A,1,FALSE) -> velofix Group of Companies
A114: Vanguard Cleaning Systems | B114: 84 | C114: =VLOOKUP(A114,'2019'!A:A,1,FALSE) -> Vanguard Cleaning Systems
A115: Valvoline Instant Oil Change | B115: 34 | C115: =VLOOKUP(A115,'2019'!A:A,1,FALSE) -> Valvoline Instant Oil Change
A116: USA Insulation | B116: 328 | C116: =VLOOKUP(A116,'2019'!A:A,1,FALSE) -> USA Insulation
A117: Uptown Cheapskate | B117: 288 | C117: =VLOOKUP(A117,'2019'!A:A,1,FALSE) -> Uptown Cheapskate
A118: uBreakiFix | B118: 18 | C118: =VLOOKUP(A118,'2019'!A:A,1,FALSE) -> uBreakiFix
A119: Two Men and a Truck Int'l. Inc. | B119: 87 | C119: =VLOOKUP(A119,'2019'!A:A,1,FALSE) -> Two Men and a Truck Int'l. Inc.
A120: Two Maids & A Mop | B120: 235 | C120: =VLOOKUP(A120,'2019'!A:A,1,FALSE) -> Two Maids & A Mop
A121: Tutu School | B121: 298 | C121: =VLOOKUP(A121,'2019'!A:A,1,FALSE) -> Tutu School
A122: Tutor Doctor | B122: 158 | C122: =VLOOKUP(A122,'2019'!A:A,1,FALSE) -> Tutor Doctor
A123: Tuffy Tire and Auto Service | B123: 257 | C123: =VLOOKUP(A123,'2019'!A:A,1,FALSE) -> Tuffy Tire and Auto Service
A124: Tubby's Sub Shop Inc. | B124: 477 | C124: =VLOOKUP(A124,'2019'!A:A,1,FALSE) -> Tubby's Sub Shop Inc.
A125: TSS Photography | B125: 270 | C125: =VLOOKUP(A125,'2019'!A:A,1,FALSE) -> TSS Photography
A126: Tropical Smoothie Cafe | B126: 71 | C126: =VLOOKUP(A126,'2019'!A:A,1,FALSE) -> Tropical Smoothie Cafe
A127: Travelodge by Wyndham | B127: 459 | C127: =VLOOKUP(A127,'2019'!A:A,1,FALSE) -> Travelodge by Wyndham
A128: Transworld Business Advisors | B128: 291 | C128: =VLOOKUP(A128,'2019'!A:A,1,FALSE) -> Transworld Business Advisors
A129: Town Money Saver | B129: 475 | C129: =VLOOKUP(A129,'2019'!A:A,1,FALSE) -> Town Money Saver
A130: Togo's | B130: 330 | C130: =VLOOKUP(A130,'2019'!A:A,1,FALSE) -> Togo's
A131: Tint World | B131: 351 | C131: =VLOOKUP(A131,'2019'!A:A,1,FALSE) -> Tint World
A132: Tide Dry Cleaners | B132: 251 | C132: =VLOOKUP(A132,'2019'!A:A,1,FALSE) -> Tide Dry Cleaners
A133: The UPS Store | B133: 4 | C133: =VLOOKUP(A133,'2019'!A:A,1,FALSE) -> The UPS Store
A134: The Tutoring Center Franchise Corp. | B134: 220 | C134: =VLOOKUP(A134,'2019'!A:A,1,FALSE) -> The Tutoring Center Franchise Corp.
A135: The Spice & Tea Exchange | B135: 279 | C135: =VLOOKUP(A135,'2019'!A:A,1,FALSE) -> The Spice & Tea Exchange
A136: The Screenmobile | B136: 331 | C136: =VLOOKUP(A136,'2019'!A:A,1,FALSE) -> The Screenmobile
A137: The Melting Pot Restaurants Inc. | B137: 289 | C137: =VLOOKUP(A137,'2019'!A:A,1,FALSE) -> The Melting Pot Restaurants Inc.
A138: The Maids | B138: 46 | C138: =VLOOKUP(A138,'2019'!A:A,1,FALSE) -> The Maids
A139: The Little Gym Int'l. | B139: 189 | C139: =VLOOKUP(A139,'2019'!A:A,1,FALSE) -> The Little Gym Int'l.
A140: The Learning Experience Academy of Early Education | B140: 79 | C140: =VLOOKUP(A140,'2019'!A:A,1,FALSE) -> The Learning Experience Academy of Early Education
A141: The Joint Corp. | B141: 109 | C141: =VLOOKUP(A141,'2019'!A:A,1,FALSE) -> The Joint Corp.
A142: The Human Bean Drive Thru | B142: 336 | C142: =VLOOKUP(A142,'2019'!A:A,1,FALSE) -> The Human Bean Drive Thru
A143: The Greene Turtle Sports Bar & Grille | B143: 277 | C143: =VLOOKUP(A143,'2019'!A:A,1,FALSE) -> The Greene Turtle Sports Bar & Grille
A144: The Flying Locksmiths | B144: 125 | C144: =VLOOKUP(A144,'2019'!A:A,1,FALSE) -> The Flying Locksmiths
A145: The Alternative Board (TAB) | B145: 234 | C145: =VLOOKUP(A145,'2019'!A:A,1,FALSE) -> The Alternative Board (TAB)
A146: TGA Premier Youth Tennis | B146: 403 | C146: =VLOOKUP(A146,'2019'!A:A,1,FALSE) -> TGA Premier Youth Tennis
A147: Teriyaki Madness | B147: 490 | C147: =VLOOKUP(A147,'2019'!A:A,1,FALSE) -> Teriyaki Madness
A148: TeamLogic IT | B148: 242 | C148: =VLOOKUP(A148,'2019'!A:A,1,FALSE) -> TeamLogic IT
A149: Tailored Living LLC | B149: 131 | C149: =VLOOKUP(A149,'2019'!A:A,1,FALSE) -> Tailored Living LLC
A150: Taco Bell | B150: 8 | C150: =VLOOKUP(A150,'2019'!A:A,1,FALSE) -> Taco Bell
A151: System4 Facility Services | B151: 294 | C151: =VLOOKUP(A151,'2019'!A:A,1,FALSE) -> System4 Facility Services
A152: SuperGlass Windshield Repair | B152: 402 | C152: =VLOOKUP(A152,'2019'!A:A,1,FALSE) -> SuperGlass Windshield Repair
A153: Supercuts | B153: 14 | C153: =VLOOKUP(A153,'2019'!A:A,1,FALSE) -> Supercuts
A154: Super 8 by Wyndham | B154: 435 | C154: =VLOOKUP(A154,'2019'!A:A,1,FALSE) -> Super 8 by Wyndham
A155: Subway | B155: 105 | C155: =VLOOKUP(A155,'2019'!A:A,1,FALSE) -> Subway
A156: Style Encore | B156: 196 | C156: =VLOOKUP(A156,'2019'!A:A,1,FALSE) -> Style Encore
A157: Studio 6 | B157: 460 | C157: =VLOOKUP(A157,'2019'!A:A,1,FALSE) -> Studio 6
A158: Stratus Building Solutions | B158: 103 | C158: =VLOOKUP(A158,'2019'!A:A,1,FALSE) -> Stratus Building Solutions
A159: Steamatic Inc. | B159: 389 | C159: =VLOOKUP(A159,'2019'!A:A,1,FALSE) -> Steamatic Inc.
A160: Spring-Green Lawn Care | B160: 169 | C160: =VLOOKUP(A160,'2019'!A:A,1,FALSE) -> Spring-Green Lawn Care
A161: Sport Clips | B161: 10 | C161: =VLOOKUP(A161,'2019'!A:A,1,FALSE) -> Sport Clips
A162: Spherion Staffing | B162: 203 | C162: =VLOOKUP(A162,'2019'!A:A,1,FALSE) -> Spherion Staffing
A163: SpeedPro Imaging | B163: 399 | C163: =VLOOKUP(A163,'2019'!A:A,1,FALSE) -> SpeedPro Imaging
A164: Sonic Drive-In | B164: 6 | C164: =VLOOKUP(A164,'2019'!A:A,1,FALSE) -> Sonic Drive-In
A165: Soccer Shots Franchising LLC | B165: 267 | C165: =VLOOKUP(A165,'2019'!A:A,1,FALSE) -> Soccer Shots Franchising LLC
A166: Snap-on Tools | B166: 30 | C166: =VLOOKUP(A166,'2019'!A:A,1,FALSE) -> Snap-on Tools
A167: Snap Fitness Inc. | B167: 348 | C167: =VLOOKUP(A167,'2019'!A:A,1,FALSE) -> Snap Fitness Inc.
A168: Smoothie King | B168: 35 | C168: =VLOOKUP(A168,'2019'!A:A,1,FALSE) -> Smoothie King
A169: Skyhawks Sports & Supertots Sports Academy | B169: 284 | C169: =VLOOKUP(A169,'2019'!A:A,1,FALSE) -> Skyhawks Sports & Supertots Sports Academy
A170: Sky Zone | B170: 81 | C170: =VLOOKUP(A170,'2019'!A:A,1,FALSE) -> Sky Zone
A171: Sir Speedy Print Signs Marketing | B171: 355 | C171: =VLOOKUP(A171,'2019'!A:A,1,FALSE) -> Sir Speedy Print Signs Marketing
A172: Signarama | B172: 249 | C172: =VLOOKUP(A172,'2019'!A:A,1,FALSE) -> Signarama
A173: Signal 88 Security | B173: 89 | C173: =VLOOKUP(A173,'2019'!A:A,1,FALSE) -> Signal 88 Security
A174: Servpro | B174: 12 | C174: =VLOOKUP(A174,'2019'!A:A,1,FALSE) -> Servpro
A175: ServiceMaster Clean/ServiceMaster Restore | B175: 243 | C175: =VLOOKUP(A175,'2019'!A:A,1,FALSE) -> ServiceMaster Clean/ServiceMaster Restore
A176: Senior Helpers | B176: 157 | C176: =VLOOKUP(A176,'2019'!A:A,1,FALSE) -> Senior Helpers
A177: Security 101 | B177: 273 | C177: =VLOOKUP(A177,'2019'!A:A,1,FALSE) -> Security 101
A178: Scooter's Coffee | B178: 414 | C178: =VLOOKUP(A178,'2019'!A:A,1,FALSE) -> Scooter's Coffee
A179: School of Rock | B179: 163 | C179: =VLOOKUP(A179,'2019'!A:A,1,FALSE) -> School of Rock
A180: Schlotzsky's | B180: 231 | C180: =VLOOKUP(A180,'2019'!A:A,1,FALSE) -> Schlotzsky's
A181: Sanford Rose Associates Int'l. Inc. | B181: 308 | C181: =VLOOKUP(A181,'2019'!A:A,1,FALSE) -> Sanford Rose Associates Int'l. Inc.
A182: Salons by JC | B182: 108 | C182: =VLOOKUP(A182,'2019'!A:A,1,FALSE) -> Salons by JC
A183: SafeSplash/SwimLabs/Swimtastic | B183: 325 | C183: =VLOOKUP(A183,'2019'!A:A,1,FALSE) -> SafeSplash/SwimLabs/Swimtastic
A184: Roy Rogers Restaurants | B184: 229 | C184: =VLOOKUP(A184,'2019'!A:A,1,FALSE) -> Roy Rogers Restaurants
A185: Round Table Pizza | B185: 187 | C185: =VLOOKUP(A185,'2019'!A:A,1,FALSE) -> Round Table Pizza
A186: Rosati's Pizza | B186: 239 | C186: =VLOOKUP(A186,'2019'!A:A,1,FALSE) -> Rosati's Pizza
A187: Rooter-Man | B187: 107 | C187: =VLOOKUP(A187,'2019'!A:A,1,FALSE) -> Rooter-Man
A188: Roosters Men's Grooming Centers | B188: 420 | C188: =VLOOKUP(A188,'2019'!A:A,1,FALSE) -> Roosters Men's Grooming Centers
A189: Rocky Mountain Chocolate Factory | B189: 453 | C189: =VLOOKUP(A189,'2019'!A:A,1,FALSE) -> Rocky Mountain Chocolate Factory
A190: Rock & Brews Franchising LLC | B190: 285 | C190: =VLOOKUP(A190,'2019'!A:A,1,FALSE) -> Rock & Brews Franchising LLC
A191: RNR Tire Express & Custom Wheels | B191: 202 | C191: =VLOOKUP(A191,'2019'!A:A,1,FALSE) -> RNR Tire Express & Custom Wheels
A192: Right at Home LLC | B192: 49 | C192: =VLOOKUP(A192,'2019'!A:A,1,FALSE) -> Right at Home LLC
A193: Retro Fitness | B193: 290 | C193: =VLOOKUP(A193,'2019'!A:A,1,FALSE) -> Retro Fitness
A194: Restoration 1 | B194: 132 | C194: =VLOOKUP(A194,'2019'!A:A,1,FALSE) -> Restoration 1
A195: Rent-A-Center | B195: 266 | C195: =VLOOKUP(A195,'2019'!A:A,1,FALSE) -> Rent-A-Center
A196: Relax The Back Corp. | B196: 365 | C196: =VLOOKUP(A196,'2019'!A:A,1,FALSE) -> Relax The Back Corp.
A197: Red Roof Inn | B197: 92 | C197: =VLOOKUP(A197,'2019'!A:A,1,FALSE) -> Red Roof Inn
A198: Realty One Group | B198: 230 | C198: =VLOOKUP(A198,'2019'!A:A,1,FALSE) -> Realty One Group
A199: Real Property Management | B199: 436 | C199: =VLOOKUP(A199,'2019'!A:A,1,FALSE) -> Real Property Management
A200: RE/MAX LLC | B200: 5 | C200: =VLOOKUP(A200,'2019'!A:A,1,FALSE) -> RE/MAX LLC
... 301 more rows
